fUSD/lending_fUSD_20250812
["ID","MTS","AMOUNT","RATE_DAILY","PERIOD"]
[378807981,1755029446655,-1195.0,0.0003099,7]
[378807983,1755029446664,-151.0,0.0003099,7]
[378807985,1755029446673,-151.0,0.0003099,7]
[378807987,1755029446682,-151.0,0.0003099,7]
[378807988,1755029446691,-151.0,0.0003099,7]
[378807989,1755029446700,-151.0,0.0003099,7]
[378807990,1755029446710,-151.0,0.0003099,7]
[378807991,1755029446719,-167.337358,0.0003099,7]
[378807992,1755029446730,-50974.16625735,0.0003099,3]
[378807993,1755029446748,-9432.55940266,0.0003099,3]
[378807995,1755029521525,2500.0,0.0002739,120]
[378807996,1755029521656,2500.0,0.00025018,120]
[378807997,1755029522524,300.0,0.0002739,120]
[378807999,1755029902913,196.88,0.00013699,2]
[378808002,1755030242857,250.0,0.00015,2]
[378808003,1755030352147,750.08,0.00028303,120]
[378808004,1755030405112,-256.78544798,0.00018999,2]
[378808005,1755030405136,-147.33484848,0.00018999,2]
[378808006,1755030419997,300.0,0.000189,6]
[378808008,1755030482260,1000.0,0.00019789,3]
[378808029,1755030636951,-361.538372,0.00017882,2]
[378808030,1755030636961,-60.90163497,0.00017973,2]
[378808031,1755030636974,-270.15104957,0.00017973,2]
[378808032,1755030636986,-168.94731546,0.00017973,2]
[378808033,1755030636995,-147.05268454,0.00017973,2]
[378808034,1755030637007,-205.01923374,0.00017973,2]
[378808035,1755030637016,-433.0,0.00017989,2]
[378808036,1755030637026,-10062.00991224,0.0001799,2]
[378808037,1755030637063,-9839.33189705,0.0001799,2]
[378808038,1755030637078,-2026.49999999,0.0001799,2]
[378808039,1755030637089,-29409.38993485,0.0001799,2]
[378808040,1755030637099,-317.17678056,0.000189,2]
[378808041,1755030637108,-585.40621148,0.000189,2]
[378808042,1755030637118,-500.0,0.00018973,2]
[378808043,1755030637127,-500.0,0.00018973,2]
[378808044,1755030637137,-176.84531499,0.00018999,2]
[378808045,1755030637146,-338.65684933,0.00018999,2]
[378808046,1755030637169,-161.34315067,0.00018999,2]
[378808047,1755030637178,-500.0,0.00018999,2]
[378808049,1755030637188,-376.83458729,0.00018999,2]
[378808050,1755030637197,-179.74981358,0.00018999,2]
[378808051,1755030637206,-50490.7879031,0.00019,2]
[378808052,1755030637215,-99047.86423694,0.00019,2]
[378808063,1755030638181,-237756.95926093,0.00019,2]
[378808064,1755030638192,-3959.094066,0.00019,2]
[378808065,1755030638204,-2051.54752315,0.00019,2]
[378808066,1755030638215,-263.38460771,0.00019,2]
[378808067,1755030638237,-394341.76901501,0.00019,2]
[378808068,1755030638246,-137692.87154583,0.00019,2]
[378808069,1755030638255,-151.0,0.00019,2]
[378808070,1755030638264,-151.0,0.00019,2]
[378808071,1755030638273,-250.0,0.00019789,2]
[378808072,1755030638282,-317.17678052,0.00023157,2]
[378808073,1755030638291,-245.99982814,0.000239,2]
[378808074,1755030638301,-10765.72,0.00024223,2]
[378808075,1755030638310,-154.14,0.00024635,2]
[378808076,1755030638320,-5027.89404624,0.000247,2]
[378808077,1755030638329,-172.05,0.0002479,2]
[378808078,1755030638339,-3641.82,0.00024798,2]
[378808079,1755030638348,-2699.97538576,0.000248,2]
[378808080,1755030638359,-167.34,0.000248,7]
[378808081,1755030638368,-240577.615071,0.000248,3]
[378808082,1755030638378,-211.77135896,0.000248,3]
[378808083,1755030638387,-255.83,0.000248,7]
[378808084,1755030638397,-204248.253292,0.000249,3]
[378808085,1755030638407,-600.0,0.00025,2]
[378808086,1755030638416,-437.5931,0.00025037,2]
[378808087,1755030638425,-1020.00006,0.00025137,2]
[378808088,1755030638435,-570.74,0.00025376,7]
[378808089,1755030638444,-154.14,0.00025866,2]
[378808090,1755030638454,-5027.89404615,0.00026114,2]
[378808091,1755030638464,-10749.908068,0.00026193,3]
[378808092,1755030638476,-2699.97538567,0.00026203,2]
[378808093,1755030638485,-245.99982813,0.00026713,2]
[378808094,1755030638494,-255.83,0.00027,7]
[378808095,1755030638503,-570.74,0.00027026,7]
[378808096,1755030638514,-154.14,0.00027098,2]
[378808097,1755030638523,-167.34,0.000271,7]
[378808099,1755030638533,-406.69940298,0.0002739,2]
[378808101,1755030638545,-230.4,0.00027397,80]
[378808103,1755030638554,-317.17678052,0.00027414,2]
[378808105,1755030638564,-156.0360214,0.000275,2]
[378808107,1755030638573,-5027.89404615,0.00027528,2]
[378808109,1755030638583,-2699.97538567,0.00027606,2]
[378808111,1755030638592,-500.0,0.00028,5]
[378808113,1755030638602,-500.0,0.00028,5]
[378808115,1755030638611,-999.99,0.00028203,2]
[378808117,1755030638621,-154.14,0.0002833,2]
[378808119,1755030638631,-250.0,0.00028342,2]
[378808121,1755030638641,-245.15,0.0002852,2]
[378808123,1755030638650,-10749.908068,0.00028536,3]
[378808125,1755030638659,-151.0,0.00028546,7]
[378808127,1755030638668,-22272.26,0.00028546,7]
[378808129,1755030638677,-211.77135896,0.00028546,7]
[378808131,1755030638688,-150.5,0.00028551,2]
[378808133,1755030638697,-500.0,0.00028573,5]
[378808136,1755030638707,-162.27,0.00028598,2]
[378808137,1755030638716,-923.42,0.00028627,2]
[378808139,1755030638725,-200.0,0.00028673,2]
[378808142,1755030638735,-570.74,0.00028675,30]
[378808143,1755030638744,-448.77,0.00028679,2]
[378808146,1755030638754,-10749.908068,0.00028759,3]
[378808147,1755030638763,-1184.72,0.00028769,30]
[378808150,1755030638773,-666.0,0.00028797,3]
[378808152,1755030638783,-255.83,0.000288,7]
[378808154,1755030638792,-4051.18793367,0.00028879,2]
[378808156,1755030638801,-6081.49,0.00028889,2]
[378808158,1755030638811,-1000.0,0.00028889,2]
[378808160,1755030638821,-5027.89404615,0.00028942,2]
[378808162,1755030638830,-2699.97538567,0.00029009,2]
[378808164,1755030638839,-334.0,0.000292,2]
[378808166,1755030638848,-10749.908068,0.00029332,3]
[378808168,1755030638859,-160.0,0.00029442,2]
[378808170,1755030638868,-248.71531821,0.00029442,2]
[378808172,1755030638878,-245.99982813,0.00029526,15]
[378808174,1755030638887,-154.14,0.00029562,2]
[378808176,1755030638897,-168.0,0.00029806,2]
[378808178,1755030638906,-2354.51,0.0003,30]
[378808180,1755030638915,-400.0,0.0003,2]
[378808182,1755030638924,-479.17210126,0.00030137,2]
[378808184,1755030638933,-570.74,0.00030325,30]
[378808185,1755030638945,-5027.89404615,0.00030356,2]
[378808187,1755030638954,-327.0,0.0003037,2]
[378808189,1755030638964,-255.83,0.000304,7]
[378808192,1755030638973,-2699.97538567,0.00030412,2]
[378808194,1755030638983,-700.0,0.000307,11]
[378808196,1755030638992,-409.12,0.000307,3]
[378808198,1755030639001,-182.187,0.00030772,27]
[378808200,1755030639010,-853.777,0.00030772,27]
[378808202,1755030639019,-1000.0,0.0003079,2]
[378808204,1755030639029,-1100.0,0.000308,11]
[378808206,1755030639038,-257.91778498,0.00030811,2]
[378808208,1755030639047,-230.4,0.00030822,80]
[378808210,1755030639057,-10749.908068,0.00030835,3]
[378808212,1755030639066,-1000.0,0.00030845,2]
[378808214,1755030639075,-1000.0,0.00030845,2]
[378808216,1755030639084,-1000.0,0.00030845,2]
[378808218,1755030639093,-1000.0,0.00030845,2]
[378808219,1755030639103,-1000.0,0.00030845,2]
[378808221,1755030639112,-1000.0,0.00030845,2]
[378808223,1755030639121,-1000.0,0.00030845,2]
[378808225,1755030639131,-1000.0,0.00030845,2]
[378808227,1755030639140,-766.543,0.00030845,2]
[378808229,1755030639149,-158.604881,0.00030845,7]
[378808231,1755030639159,-21499.816136,0.0003087,3]
[378808233,1755030639168,-300.0,0.00030879,10]
[378808236,1755030639177,-151.0,0.0003088,7]
[378808237,1755030639186,-250.110724,0.0003088,7]
[378808240,1755030639196,-151.0,0.0003088,7]
[378808242,1755030639206,-151.0,0.0003088,7]
[378808243,1755030639215,-151.0,0.0003088,7]
[378808245,1755030639224,-151.0,0.0003088,7]
[378808247,1755030639233,-151.0,0.0003088,7]
[378808249,1755030639242,-151.0,0.0003088,7]
[378808251,1755030639252,-1116.306992,0.0003088,7]
[378808253,1755030639261,-151.0,0.0003088,7]
[378808255,1755030639271,-1116.306992,0.0003088,7]
[378808257,1755030639280,-182.234216,0.0003088,7]
[378808260,1755030639292,-151.0,0.0003088,7]
[378808262,1755030639302,-182.234216,0.0003088,7]
[378808264,1755030639311,-44987.712,0.0003088,2]
[378808266,1755030639321,-10749.908068,0.0003089,3]
[378808268,1755030639331,-5000.0,0.0003089,2]
[378808270,1755030639340,-152.972285,0.000309,2]
[378808271,1755030639349,-5713.5669,0.000309,2]
[378808274,1755030639359,-1500.0,0.000309,11]
[378808275,1755030639369,-500.0,0.00030973,5]
[378808278,1755030639378,-151.0,0.0003098,7]
[378808280,1755030639387,-151.0,0.0003098,7]
[378808282,1755030639396,-151.0,0.0003098,7]
[378808284,1755030639406,-151.0,0.0003098,7]
[378808286,1755030639415,-151.0,0.0003098,7]
[378808287,1755030639424,-151.0,0.0003098,7]
[378808289,1755030639433,-151.0,0.0003098,7]
[378808291,1755030639441,-1116.306992,0.0003098,7]
[378808293,1755030639450,-151.0,0.0003098,7]
[378808295,1755030639460,-1116.306992,0.0003098,7]
[378808297,1755030639473,-182.234216,0.0003098,7]
[378808299,1755030639483,-151.0,0.0003098,7]
[378808301,1755030639492,-182.234216,0.0003098,7]
[378808303,1755030639501,-457.93703655,0.0003098,3]
[378808305,1755030639512,-32249.724204,0.0003098,3]
[378808307,1755030639521,-1360.15226427,0.00030989,120]
[378808309,1755030639531,-151.96483,0.0003099,7]
[378808311,1755030639541,-151.0,0.0003099,7]
[378808314,1755030639553,-151.0,0.0003099,7]
[378808315,1755030639563,-151.0,0.0003099,7]
[378808317,1755030639572,-151.0,0.0003099,7]
[378808320,1755030639582,-151.0,0.0003099,7]
[378808321,1755030639591,-151.0,0.0003099,7]
[378808323,1755030639601,-151.0,0.0003099,7]
[378808326,1755030639611,-151.0,0.0003099,7]
[378808327,1755030639620,-151.0,0.0003099,7]
[378808329,1755030639629,-190.730481,0.0003099,7]
[378808331,1755030639638,-190.730481,0.0003099,7]
[378808333,1755030639647,-151.0,0.0003099,7]
[378808336,1755030639657,-150.0,0.0003099,7]
[378808337,1755030639666,-152.69890409,0.0003099,7]
[378808339,1755030639675,-151.0,0.0003099,7]
[378808341,1755030639684,-151.0,0.0003099,7]
[378808343,1755030639694,-151.0,0.0003099,7]
[378808345,1755030639703,-368.909474,0.0003099,7]
[378808347,1755030639712,-500.114379,0.0003099,7]
[378808348,1755030639721,-368.909474,0.0003099,7]
[378808349,1755030639730,-500.114379,0.0003099,7]
[378808350,1755030639739,-151.0,0.0003099,7]
[378808351,1755030639749,-151.0,0.0003099,7]
[378808352,1755030639758,-151.883679,0.0003099,7]
[378808353,1755030639767,-152.239659,0.0003099,7]
[378808354,1755030639776,-151.0,0.0003099,7]
[378808355,1755030639785,-151.0,0.0003099,7]
[378808356,1755030639794,-151.0,0.0003099,7]
[378808357,1755030639803,-151.0,0.0003099,7]
[378808358,1755030639813,-386.680336,0.0003099,7]
[378808359,1755030639822,-386.680336,0.0003099,7]
[378808360,1755030639832,-386.680336,0.0003099,7]
[378808361,1755030639841,-386.680336,0.0003099,7]
[378808362,1755030639852,-200.0,0.0003099,7]
[378808363,1755030639862,-150.0,0.0003099,7]
[378808364,1755030639871,-150.0,0.0003099,7]
[378808365,1755030639881,-151.0,0.0003099,7]
[378808366,1755030639890,-361.163741,0.0003099,7]
[378808367,1755030639899,-361.163741,0.0003099,7]
[378808368,1755030639909,-151.0,0.0003099,7]
[378808369,1755030639918,-151.0,0.0003099,7]
[378808370,1755030639928,-151.0,0.0003099,7]
[378808371,1755030639937,-173.874319,0.0003099,7]
[378808372,1755030639947,-173.874319,0.0003099,7]
[378808373,1755030639957,-151.0,0.0003099,7]
[378808374,1755030639966,-151.0,0.0003099,7]
[378808375,1755030639975,-151.0,0.0003099,7]
[378808376,1755030639985,-151.0,0.0003099,7]
[378808377,1755030639995,-173.874319,0.0003099,7]
[378808378,1755030640004,-173.874319,0.0003099,7]
[378808379,1755030640013,-253.415025,0.0003099,7]
[378808381,1755030640023,-151.51792,0.0003099,7]
[378808382,1755030640032,-151.0,0.0003099,7]
[378808383,1755030640042,-2200.883447,0.0003099,7]
[378808384,1755030640051,-2200.883447,0.0003099,7]
[378808385,1755030640061,-392.973011,0.0003099,7]
[378808386,1755030640070,-10749.908068,0.0003099,3]
[378808387,1755030640079,-392.973011,0.0003099,7]
[378808388,1755030640089,-151.0,0.0003099,7]
[378808389,1755030640098,-151.784263,0.0003099,7]
[378808390,1755030640109,-200.0,0.0003099,7]
[378808391,1755030640118,-151.0,0.0003099,7]
[378808392,1755030640127,-150.0,0.0003099,7]
[378808393,1755030640137,-150.0,0.0003099,7]
[378808394,1755030640147,-151.0,0.0003099,7]
[378808395,1755030640156,-200.0,0.0003099,7]
[378808396,1755030640165,-151.0,0.0003099,7]
[378808397,1755030640174,-151.0,0.0003099,7]
[378808398,1755030640183,-200.0,0.0003099,2]
[378808399,1755030640192,-302.0,0.0003099,7]
[378808400,1755030640201,-1116.306992,0.0003099,7]
[378808401,1755030640210,-623.98467,0.0003099,7]
[378808402,1755030640220,-151.0,0.0003099,7]
[378808403,1755030640229,-1116.306992,0.0003099,7]
[378808404,1755030640238,-623.98467,0.0003099,7]
[378808405,1755030640247,-182.234216,0.0003099,7]
[378808406,1755030640256,-151.0,0.0003099,7]
[378808407,1755030640266,-182.234216,0.0003099,7]
[378808408,1755030640275,-151.0,0.00030999,7]
[378808409,1755030640284,-151.0,0.00030999,7]
[378808410,1755030640293,-151.0,0.00030999,7]
[378808411,1755030640302,-151.962187,0.00030999,7]
[378808412,1755030640311,-1979.81573752,0.00030999,15]
[378808413,1755030640320,-300.0,0.00030999,10]
[378808414,1755030640546,-150.0,0.00030999,7]
[378808415,1755030640564,-500.0,0.00030999,7]
[378808416,1755030640574,-300.0,0.00030999,10]
[378808417,1755030640583,-150.0,0.00030999,7]
[378808418,1755030640592,-226.19,0.00030999,2]
[378808419,1755030640602,-300.0,0.00030999,10]
[378808420,1755030640611,-530.32,0.00030999,5]
[378808421,1755030640621,-150.0,0.00030999,2]
[378808422,1755030640631,-151.54805674,0.00030999,2]
[378808423,1755030640640,-321250.27723215,0.00031,30]
[378808424,1755030640650,-185053.39397233,0.00031,120]
[378808430,1755030640801,-3755.9997165,0.00031,120]
[378808432,1755030640812,-108771.77043466,0.00031,120]
[378808434,1755030640823,-1892.97512719,0.00031,120]
[378808438,1755030640854,-34679.21033481,0.00031,120]
[378808439,1755030640866,-326.51144536,0.00031,120]
[378808440,1755030640878,-2001.5852858,0.00031,120]
[378808441,1755030640889,-85868.0,0.00031,120]
[378808442,1755030641022,-909.86489755,0.00031,120]
[378808443,1755030641819,-307.52712928,0.00019,2]
[378808444,1755030641838,-536.2829031,0.00019,2]
[378808445,1755030641849,-1012.7426799,0.00019,2]
[378808446,1755030641861,-3432.20055364,0.00019,2]
[378808447,1755030641870,-7884.56872429,0.00031,120]
[378808448,1755030641881,-453.3672208,0.00031,120]
[378808449,1755030641892,-2221.66532806,0.00031,120]
[378808450,1755030641903,-11636.73322245,0.00031,120]
[378808451,1755030641914,-1196.3023094,0.00031,120]
[378808462,1755030643885,-888.79399991,0.00031,120]
[378808463,1755030644105,-445.19877114,0.00031,120]
[378808464,1755030644181,-281.03,0.00030352,2]
[378808465,1755030644190,-344.84836222,0.00031,120]
[378808466,1755030644410,-44.90225516,0.00031,120]
[378808486,1755030646297,-451.73786531,0.00031,120]
[378808487,1755030646353,-355.71695928,0.00031,120]
[378808488,1755030646370,-681.26992959,0.00031,120]
[378808489,1755030646411,-1102411.12780969,0.00031,120]
[378808490,1755030646420,-2189.84,0.00031,2]
[378808491,1755030646430,-325.44812155,0.00031,30]
[378808492,1755030646439,-1000.0,0.00031,3]
[378808493,1755030646449,-843.0035059,0.00031,120]
[378808494,1755030646458,-843.0035059,0.00031,30]
[378808495,1755030646468,-203.89437503,0.00031,7]
[378808496,1755030646481,-151.23745,0.00031,7]
[378808497,1755030646491,-289.657413,0.00031,7]
[378808498,1755030646501,-151.0,0.00031,7]
[378808499,1755030646512,-151.0,0.00031,7]
[378808500,1755030646521,-151.0,0.00031,7]
[378808501,1755030646530,-152.177134,0.00031,7]
[378808502,1755030646539,-151.0,0.00031,7]
[378808503,1755030646550,-151.0,0.00031,7]
[378808504,1755030646560,-151.0,0.00031,7]
[378808505,1755030646569,-151.0,0.00031,7]
[378808506,1755030646578,-151.0,0.00031,7]
[378808507,1755030646587,-151.0,0.00031,7]
[378808508,1755030646597,-151.0,0.00031,7]
[378808509,1755030646606,-151.0,0.00031,7]
[378808510,1755030646618,-151.0,0.00031,7]
[378808511,1755030646628,-151.0,0.00031,7]
[378808512,1755030646638,-274.798272,0.00031,7]
[378808513,1755030646647,-151.0,0.00031,7]
[378808514,1755030646656,-210.90231,0.00031,7]
[378808515,1755030646666,-151.0,0.00031,7]
[378808516,1755030646675,-151.0,0.00031,7]
[378808517,1755030646685,-151.0,0.00031,7]
[378808518,1755030646695,-505.96373412,0.00031,2]
[378808520,1755030646704,-151.0,0.00031,7]
[378808522,1755030646714,-151.0,0.00031,7]
[378808523,1755030646723,-151.0,0.00031,7]
[378808524,1755030646732,-151.0,0.00031,7]
[378808525,1755030646741,-151.0,0.00031,7]
[378808526,1755030646751,-217.551044,0.00031,7]
[378808527,1755030646760,-151.0,0.00031,7]
[378808528,1755030646769,-151.0,0.00031,7]
[378808529,1755030646779,-151.51457,0.00031,7]
[378808530,1755030646788,-151.0,0.00031,7]
[378808531,1755030646798,-151.0,0.00031,7]
[378808532,1755030646809,-151.0,0.00031,7]
[378808533,1755030646818,-151.104925,0.00031,7]
[378808534,1755030646827,-151.313576,0.00031,7]
[378808535,1755030646837,-151.501046,0.00031,7]
[378808536,1755030646847,-151.0,0.00031,7]
[378808537,1755030646856,-151.0,0.00031,7]
[378808538,1755030646868,-151.0,0.00031,7]
[378808539,1755030646878,-151.0,0.00031,7]
[378808540,1755030646887,-201.642082,0.00031,7]
[378808541,1755030646897,-151.0,0.00031,7]
[378808542,1755030646906,-151.0,0.00031,7]
[378808543,1755030646915,-151.0,0.00031,7]
[378808544,1755030646924,-300.0,0.00031,7]
[378808545,1755030646934,-1571.875782,0.00031,7]
[378808546,1755030646943,-1571.875782,0.00031,7]
[378808547,1755030646952,-1571.875782,0.00031,7]
[378808548,1755030646961,-151.0,0.00031,7]
[378808549,1755030646970,-151.0,0.00031,7]
[378808552,1755030646980,-1571.875782,0.00031,7]
[378808555,1755030646989,-151.0,0.00031,7]
[378808557,1755030646998,-1571.875782,0.00031,7]
[378808559,1755030647007,-1571.875782,0.00031,7]
[378808561,1755030647016,-151.0,0.00031,7]
[378808562,1755030647025,-161.031166,0.00031,7]
[378808563,1755030647035,-151.88638,0.00031,7]
[378808564,1755030647044,-151.0,0.00031,7]
[378808565,1755030647053,-151.0,0.00031,7]
[378808566,1755030647062,-151.550441,0.00031,7]
[378808567,1755030647071,-151.638909,0.00031,7]
[378808568,1755030647081,-151.693633,0.00031,7]
[378808569,1755030647090,-151.0,0.00031,7]
[378808570,1755030647100,-151.0,0.00031,7]
[378808571,1755030647109,-151.0,0.00031,7]
[378808572,1755030647120,-151.0,0.00031,7]
[378808573,1755030647129,-151.0,0.00031,7]
[378808574,1755030647138,-151.0,0.00031,7]
[378808575,1755030647147,-154.298902,0.00031,7]
[378808576,1755030647157,-151.0,0.00031,7]
[378808577,1755030647166,-153.506848,0.00031,7]
[378808578,1755030647175,-281.683262,0.00031,7]
[378808579,1755030647184,-151.0,0.00031,7]
[378808580,1755030647193,-151.0,0.00031,7]
[378808581,1755030647203,-151.0,0.00031,7]
[378808582,1755030647212,-151.0,0.00031,7]
[378808583,1755030647221,-151.0,0.00031,7]
[378808584,1755030647231,-151.0,0.00031,7]
[378808585,1755030647241,-151.0,0.00031,7]
[378808586,1755030647250,-151.0,0.00031,7]
[378808587,1755030647260,-151.0,0.00031,7]
[378808588,1755030647269,-151.0,0.00031,7]
[378808589,1755030647279,-151.0,0.00031,7]
[378808590,1755030647289,-288.19399,0.00031,7]
[378808591,1755030647298,-151.0,0.00031,7]
[378808592,1755030647307,-151.0,0.00031,7]
[378808593,1755030647317,-151.0,0.00031,7]
[378808594,1755030647326,-153.31599,0.00031,7]
[378808595,1755030647336,-151.0,0.00031,7]
[378808596,1755030647345,-151.352061,0.00031,7]
[378808597,1755030647355,-151.0,0.00031,7]
[378808598,1755030647366,-151.0,0.00031,7]
[378808599,1755030647376,-151.0,0.00031,7]
[378808600,1755030647386,-151.0,0.00031,7]
[378808601,1755030647396,-245.146012,0.00031,7]
[378808602,1755030647407,-151.0,0.00031,7]
[378808603,1755030647417,-151.0,0.00031,7]
[378808604,1755030647427,-292.215432,0.00031,7]
[378808605,1755030647436,-401.323445,0.00031,7]
[378808606,1755030647446,-401.323445,0.00031,7]
[378808607,1755030647456,-401.323445,0.00031,7]
[378808608,1755030647465,-401.323445,0.00031,7]
[378808609,1755030647479,-401.323445,0.00031,7]
[378808610,1755030647488,-190.730481,0.00031,7]
[378808611,1755030647498,-190.730481,0.00031,7]
[378808612,1755030647509,-190.730481,0.00031,7]
[378808613,1755030647520,-190.730481,0.00031,7]
[378808614,1755030647531,-190.730481,0.00031,7]
[378808615,1755030647540,-190.730481,0.00031,7]
[378808616,1755030647551,-151.0,0.00031,7]
[378808617,1755030647562,-151.0,0.00031,7]
[378808618,1755030647573,-151.0,0.00031,7]
[378808619,1755030647583,-151.0,0.00031,7]
[378808620,1755030647594,-151.0,0.00031,7]
[378808621,1755030647603,-151.0,0.00031,7]
[378808622,1755030647615,-196.78883735,0.00031,2]
[378808623,1755030647625,-151.0,0.00031,7]
[378808624,1755030647638,-151.0,0.00031,7]
[378808625,1755030647648,-216.896374,0.00031,7]
[378808626,1755030647657,-368.909474,0.00031,7]
[378808627,1755030647667,-368.909474,0.00031,7]
[378808628,1755030647677,-368.909474,0.00031,7]
[378808629,1755030647687,-500.114379,0.00031,7]
[378808630,1755030647697,-500.114379,0.00031,7]
[378808631,1755030647707,-500.114379,0.00031,7]
[378808632,1755030647717,-368.909474,0.00031,7]
[378808633,1755030647727,-368.909474,0.00031,7]
[378808634,1755030647737,-368.909474,0.00031,7]
[378808635,1755030647746,-500.114379,0.00031,7]
[378808636,1755030647756,-500.114379,0.00031,7]
[378808637,1755030647765,-500.114379,0.00031,7]
[378808638,1755030647774,-152.013411,0.00031,7]
[378808639,1755030647784,-151.0,0.00031,7]
[378808640,1755030647793,-151.0,0.00031,7]
[378808641,1755030647802,-151.0,0.00031,7]
[378808642,1755030647812,-386.680336,0.00031,7]
[378808643,1755030647821,-386.680336,0.00031,7]
[378808644,1755030647830,-386.680336,0.00031,7]
[378808645,1755030647839,-386.680336,0.00031,7]
[378808646,1755030647848,-386.680336,0.00031,7]
[378808647,1755030647858,-386.680336,0.00031,7]
[378808648,1755030647870,-361.163741,0.00031,7]
[378808649,1755030647879,-361.163741,0.00031,7]
[378808650,1755030647888,-361.163741,0.00031,7]
[378808651,1755030647897,-361.163741,0.00031,7]
[378808652,1755030647907,-361.163741,0.00031,7]
[378808653,1755030647916,-361.163741,0.00031,7]
[378808654,1755030647925,-151.135249,0.00031,7]
[378808655,1755030647934,-151.0,0.00031,7]
[378808656,1755030647943,-151.0,0.00031,7]
[378808657,1755030647952,-151.0,0.00031,7]
[378808658,1755030647961,-173.874319,0.00031,7]
[378808659,1755030647971,-173.874319,0.00031,7]
[378808660,1755030647980,-173.874319,0.00031,7]
[378808661,1755030647990,-151.0,0.00031,7]
[378808662,1755030647999,-151.0,0.00031,7]
[378808663,1755030648009,-151.0,0.00031,7]
[378808664,1755030648018,-151.0,0.00031,7]
[378808665,1755030648028,-151.0,0.00031,7]
[378808666,1755030648037,-151.0,0.00031,7]
[378808667,1755030648047,-151.0,0.00031,7]
[378808668,1755030648056,-151.0,0.00031,7]
[378808669,1755030648065,-151.0,0.00031,7]
[378808670,1755030648075,-151.0,0.00031,7]
[378808671,1755030648084,-173.874319,0.00031,7]
[378808672,1755030648093,-173.874319,0.00031,7]
[378808673,1755030648102,-173.874319,0.00031,7]
[378808674,1755030648111,-2200.883447,0.00031,7]
[378808675,1755030648121,-2200.883447,0.00031,7]
[378808676,1755030648131,-2200.883447,0.00031,7]
[378808677,1755030648140,-2200.883447,0.00031,7]
[378808678,1755030648149,-2200.883447,0.00031,7]
[378808679,1755030648158,-165.7,0.00031,23]
[378808680,1755030648167,-2200.883447,0.00031,7]
[378808681,1755030648177,-2200.883447,0.00031,7]
[378808682,1755030648186,-2200.883447,0.00031,7]
[378808683,1755030648195,-392.973011,0.00031,7]
[378808684,1755030648204,-392.973011,0.00031,7]
[378808685,1755030648214,-392.973011,0.00031,7]
[378808686,1755030648223,-392.973011,0.00031,7]
[378808687,1755030648232,-392.973011,0.00031,7]
[378808688,1755030648241,-392.973011,0.00031,7]
[378808689,1755030648250,-392.973011,0.00031,7]
[378808690,1755030648259,-392.973011,0.00031,7]
[378808691,1755030648268,-151.0,0.00031,7]
[378808692,1755030648277,-151.0,0.00031,7]
[378808693,1755030648287,-151.0,0.00031,7]